Cogmind - Beta 12 @@@ ROGUE MODE // 2023.10.05 @ 21:09:30 Player: Figgis Result: Destroyed by S-10 Pest with Light Assault Rifle Performance ------------- Evolutions (0) 0 Regions Visited (2) 400 Robots Destroyed (9) 45 Value Destroyed (182) 182 Prototype IDs (3) 60 Alien Tech Used (0) 0 Bonus (60) 60 TOTAL SCORE: 747 Bonus ------- Follower Combat Kills 60 Cogmind --------- Core Integrity 0/250 Matter 300/300 Energy 160/160 System Corruption 0% Temperature Cool (0) Movement Walking (190) Ox1 Location -10/Mines Parts ------- > --- POWER (1) -------- Light Nuclear Core > --- PROPULSION (2) --- Aluminum Leg Aluminum Leg > --- UTILITY (2) ------ Large Storage Unit Improved Terrain Scanner > --- WEAPON (2) ------- Small Laser Particle Gun > --- INVENTORY (15) --- Light Ion Engine Light Nuclear Core Aluminum Leg Aluminum Leg Aluminum Leg Wheel Light Assault Rifle Peak State ------------ > --- POWER ------------ Light Nuclear Core > --- PROPULSION ------- Aluminum Leg Aluminum Leg > --- UTILITY ---------- Large Storage Unit Improved Terrain Scanner > --- WEAPON ----------- Small Laser Particle Gun > --- INVENTORY -------- Light Ion Engine Aluminum Leg Aluminum Leg Wheel Light Assault Rifle [Rating: 12] Favorites ----------- Power Light Ion Engine Engine Light Ion Engine Power Core Light Nuclear Core Propulsion Aluminum Leg Leg Aluminum Leg Wheel Wheel Utility Large Storage Unit Device Improved Terrain Scanner Storage Large Storage Unit Weapon Light Assault Rifle Energy Gun Small Laser Ballistic Gun Light Assault Rifle Launcher Rocket Launcher Build | -11 -10 -10 ------- Run | Jun Mat Min Slots Evolved . | . . . Power . | . . . Propulsion . | . . . Utility . | . . . Weapon . | . . . Parts Attached 22 | 6 3 13 Power 5 | 1 1 3 Engine 4 | 1 1 2 Core 1 | . . 1 Reactor . | . . . Propulsion 6 | 2 . 4 Treads . | . . . Leg 5 | 2 . 3 Wheel 1 | . . 1 Hover . | . . . Flight . | . . . Utility 3 | 1 1 1 Device 1 | . . 1 Storage 2 | 1 1 . Processor . | . . . Hackware . | . . . Protection . | . . . Artifact . | . . . Weapon 8 | 2 1 5 Energy Gun 3 | . . 3 Energy Cannon . | . . . Ballistic Gun 3 | 2 1 . Ballistic Cannon . | . . . Launcher 2 | . . 2 Special Weapon . | . . . Impact Weapon . | . . . Slashing Weapon . | . . . Piercing Weapon . | . . . Special Melee Weapon . | . . . Unidentified Prototypes . | . . . Parts Lost 8 | . . 8 Power 3 | . . 3 Propulsion 3 | . . 3 Utility . | . . . Weapon 2 | . . 2 Highest Loss Streak 4 | . . 4 To Critical Strikes . | . . . Average Slot Usage (%) 89 | . 85 90 Engine 9 | . 14 8 Core 4 | . . 5 Leg 24 | . 28 23 Device 8 | . . 9 Storage 14 | . 14 14 Energy Gun 15 | . . 18 Ballistic Gun 12 | . 28 8 Naked Turns . | . . . Heaviest Build 30 | 10 25 30 Greatest Support 20 | 20 20 20 Greatest Overweight (x) 8 | . 1 8 Average Overweight (x) 1 | . . 1 Largest Inventory Capacity 15 | 8 15 15 Average Capacity 14 | 7 13 15 Most Carried 8 | 5 3 8 Average Carried 3 | 2 2 4 Final Capacity 15 | 8 15 15 Final Carried 7 | 2 2 7 Class Distribution -------------------- 55% | Mutant 44% | Scavenger-Mutant Dominant Class ---------------- Mutant | -10/Materials Scavenger-Mutant | -10/Mines Resources | -11 -10 -10 ----------- Run | Jun Mat Min Matter Collected 508 | 177 49 282 Remotely . | . . . Salvage Created 210 | . 95 115 Parts 16 | . 16 . Haulers Intercepted . | . . . Recyclers Shooed 1 | . 1 . Parts Field Recycled . | . . . Retrieved Matter . | . . . Parts Self-Destructed . | . . . Prevented . | . . . Kills | -11 -10 -10 ------- Run | Jun Mat Min Combat Hostiles Destroyed 16 | . 6 10 Guns 14 | . 6 8 AOE 2 | . . 2 Classes Destroyed 4 | . 2 2 Watcher 1 | . 1 . Swarmer 6 | . 6 . Demolisher 2 | . . 2 Assembled 8 | . . 8 Best Kill Streak 4 | . 4 2 Combat Bots Only 3 | . 3 2 Max Kills in Single Turn 1 | . 1 1 Gunslinging . | . . . Exploded 1 | . . 1 Melee . | . . . Uniques/NPCs Destroyed . | . . . Combat | -11 -10 -10 -------- Run | Jun Mat Min Damage Taken 1035 | . 175 860 Core 255 | . 58 197 Absorbed by Shields . | . . . Core Remaining (%) 100 | 100 . . Volleys Fired 51 | . 15 36 Largest 2 | . 2 2 Hottest 105 | . 40 105 Shots Fired 102 | . 30 72 Gun 98 | . 30 68 Cannon . | . . . Launcher 4 | . . 4 Special . | . . . Kinetic 79 | . 30 49 Thermal 19 | . . 19 Explosive 4 | . . 4 Electromagnetic . | . . . Robot Hit Streak 6 | . 6 6 Robot Miss Streak 4 | . 2 4 Penetration Max . | . . . Secondary Targets 1 | . 1 . Max Gunslinging Chain 1 | . 1 . Shots Hit Robots 57 | . 19 38 Core Hits 34 | . 11 23 Critical Kills 1 | . . 1 Critical Parts Destroyed 1 | . . 1 Critical Strikes 2 | . . 2 Destroy 2 | . . 2 Melee Attacks . | . . . Impact . | . . . Slashing . | . . . Piercing . | . . . Sneak Attacks . | . . . Combat Hostiles . | . . . Follow-up Attacks . | . . . Damage Inflicted 641 | . 170 471 Guns 497 | . 170 327 Cannons . | . . . Explosions 144 | . . 144 Melee . | . . . Ramming . | . . . Kinetic 429 | . 170 259 Thermal 68 | . . 68 Explosive 144 | . . 144 Electromagnetic . | . . . Impact . | . . . Slashing . | . . . Piercing . | . . . Highest Corruption . | . . . Average Corruption . | . . . Corruption Purged . | . . . Corruption Blocked . | . . . Overload Shots . | . . . Overflow Damage 8 | . . 8 Projectiles . | . . . Explosions 8 | . . 8 Melee . | . . . Knockbacks . | . . . Impact . | . . . Kinetic . | . . . Secondary . | . . . Self-Inflicted Damage 39 | . . 39 Shots 1 | . . 1 Rammed . | . . . Targets Rammed . | . . . Kicked . | . . . Crushed . | . . . Highest Temperature 151 | . . 151 Average Temperature 42 | . . 42 Received Heat Transfer 58 | . . 58 Siege Activations . | . . . Robots Corrupted . | . . . Combat Hostiles . | . . . Parts Fried . | . . . Impact Corruptions . | . . . Robots Melted . | . . . Combat Hostiles . | . . . Parts Melted . | . . . Heat Transferred 162 | . . 162 Parts Sabotaged . | . . . Parts Stolen . | . . . Parts Stripped . | . . . Power Chain Reactions . | . . . Missiles Intercepted . | . . . Alert | -11 -10 -10 ------- Run | Jun Mat Min Peak Influence 221 | . 221 141 Initial 85 | . . 85 Average 68 | . 136 58 Maximum Alert Level 1 | . 1 . Low Security (%) 93 | 100 60 100 Level 1 6 | . 39 . Level 2 . | . . . Level 3 . | . . . Level 4 . | . . . Level 5 . | . . . High Security . | . . . Max Security . | . . . Squads Dispatched 1 | . 1 . Investigation . | . . . Extermination . | . . . Reinforcement 1 | . 1 . Assault . | . . . Garrison . | . . . Intercept . | . . . Searches Triggered . | . . . Construction Impeded . | . . . Haulers Reinforced . | . . . Active Scanning Responses . | . . . Cargo Convoy Interrupts . | . . . Stealth | -11 -10 -10 --------- Run | Jun Mat Min Distress Signals 2 | . 2 . Communications Jammed . | . . . Distress Signals . | . . . Times Spotted 31 | . 9 22 Peak Tracking Total 6 | . 5 6 Tactical Retreats 2 | . 1 1 Traps | -11 -10 -10 ------- Run | Jun Mat Min Traps Triggered 1 | . 1 . Indirectly . | . . . Trap Hack Attempts . | . . . Triggered . | . . . Disarmed . | . . . Reprogrammed . | . . . Reused . | . . . Traps Extracted . | . . . Installed . | . . . Triggered . | . . . Machines | -11 -10 -10 ---------- Run | Jun Mat Min Machines Disabled . | . . . Max in Single Turn . | . . . Machines Repaired . | . . . Machines Sabotaged . | . . . Overloaded Fab Kills . | . . . Hacking | -11 -10 -10 --------- Run | Jun Mat Min Machines Accessed 1 | . 1 . Terminals 1 | . 1 . Fabricators . | . . . Repair Stations . | . . . Recycling Units . | . . . Scanalyzers . | . . . Garrison Access . | . . . Total Hacks 2 | . 2 . Successful 1 | . 1 . Failed 1 | . 1 . Catastrophic 1 | . 1 . Database Lockouts . | . . . Manual . | . . . Terminals 2 | . 2 . Fabricators . | . . . Repair Stations . | . . . Recycling Units . | . . . Scanalyzers . | . . . Garrison Access . | . . . Terminal Hacks 1 | . 1 . Prototype ID Bank 1 | . 1 . Fabricator Hacks . | . . . Repair Station Hacks . | . . . Recycling Unit Hacks . | . . . Scanalyzer . | . . . Garrison Access Hacks . | . . . Unauthorized Hacks . | . . . Terminals . | . . . Fabricators . | . . . Repair Stations . | . . . Recycling Units . | . . . Scanalyzers . | . . . Garrison Access . | . . . Data Cores Recovered . | . . . Used . | . . . Hacking Detections 1 | . 1 . Full Trace Events . | . . . Feedback Events . | . . . Feedback Blocked . | . . . Robot Schematics Acquired . | . . . Robots Built . | . . . Authchips . | . . . Time . | . . . Total Robot Build Rating . | . . . Part Schematics Acquired . | . . . Parts Built . | . . . Authchips . | . . . Time . | . . . Total Part Build Rating . | . . . Parts Repaired . | . . . Time . | . . . Parts Recycled . | . . . Recycled Matter . | . . . Retrieved Matter . | . . . Retrieved Components . | . . . Parts Scanalyzed . | . . . Part Schematics Acquired . | . . . Parts Damaged . | . . . Bothacking | -11 -10 -10 ------------ Run | Jun Mat Min Used RIF Installer . | . . . Robots Hacked . | . . . Non-combat . | . . . Combat . | . . . Robot Hacks Applied . | . . . Relay Couplers Released . | . . . Fabnet Peak Effective % . | . . . Robots Rewired . | . . . Allies Hacked . | . . . Hacks Repelled . | . . . Allies | -11 -10 -10 -------- Run | Jun Mat Min Total Allies 3 | . . 3 Largest Group 3 | . . 3 Highest-Rated Group 40 | . . 40 Highest-Rated Ally 16 | . . 16 Total Orders . | . . . Ally Attacks 56 | . . 56 Total Damage 533 | . . 533 Kills 8 | . . 8 Allies Corrupted . | . . . Allies Melted . | . . . Intel | -11 -10 -10 ------- Run | Jun Mat Min Robot Analysis Total . | . . . Derelict Logs Recovered . | . . . Drone Launches . | . . . Drone Recoveries . | . . . Exploration | -11 -10 -10 ------------- Run | Jun Mat Min Turns Passed 1090 | 57 179 854 Spaces Moved 485 | 47 80 358 Core 17 | 16 . 1 Treads . | . . . Legs 455 | 31 80 344 Wheels 13 | . . 13 Hover . | . . . Flight . | . . . Fastest Speed 50 | 50 120 110 Average Speed 185 | 96 162 201 Slowest Speed 450 | 120 190 450 Overloaded Moves . | . . . Propulsion Burnouts . | . . . Robots Hopped . | . . . Cave-ins Triggered . | . . . Exploration Rate (%) 34 | 4 26 73 Regions Visited 2 Branch Regions 1 Pre-discovered Areas . | . . . Known Exits Taken . | . . . Unknown Exits Taken 2 | 1 1 . Scrap Searched 1 | . . 1 Spaces Dug . | . . . Terrain Destroyed 24 | . . 24 Melee . | . . . Projectile . | . . . AOE 24 | . . 24 Terrain Rammed . | . . . Walls Destroyed . | . . . Machines Disabled . | . . . Actions | -11 -10 -10 --------- Run | Jun Mat Min Total 591 | 58 107 426 Wait 8 | . 4 4 Move 483 | 46 79 358 Hop . | . . . Pick Up 24 | 6 4 14 Fast Attach 2 | 2 . . Attach 17 | 4 3 10 Detach 1 | . . 1 Swap 3 | . . 3 Drop 2 | . 2 . Fire 51 | . 15 36 Melee . | . . . Ram . | . . . Kick . | . . . Crush . | . . . Escape Stasis . | . . . Rewire . | . . . Trap . | . . . Miscellaneous . | . . . Route ------- -11/Junkyard -10/Materials -10/Mines History --------- Turn | Location | Event 13 | -11/Junkyard | Discovered new exit (range 15) 58 | -11/Junkyard | Entered Materials 211 | -10/Materials | Discovered new exit (range 15) 237 | -10/Materials | Entered Mines 244 | -10/Mines | Received a Rocket Launcher from a helpful Derelict 246 | -10/Mines | Assembled infested the area 251 | -10/Mines | Assisted by a Guerilla fighting off Assembled 305 | -10/Mines | Build established: Mutant 423 | -10/Mines | Lost 3 parts (1p1n1w) 512 | -10/Mines | Assisted by bots powering up and referring to "LRC-V3" 697 | -10/Mines | Core integrity fell below 50% 745 | -10/Mines | Core integrity fell below 20% 777 | -10/Mines | Lost 4 parts (2p1n1w) 1079 | -10/Mines | Build established: Scavenger-Mutant 1091 | -10/Mines | Destroyed by S-10 Pest with Light Assault Rifle Last Messages --------------- 00743_ Destroyed Wheel. 00746_ The unstable cave ceiling collapses. 00746_ Rocket Launcher destroyed. 00746_ Destroyed Rocket Launcher. 00747_ The unstable cave ceiling collapses. 00750_ D-53 Grenadier destroyed. 00755_ The unstable cave ceiling collapses. 00771_ Acquired Aluminum Leg. 00776_ Acquired 7 matter. 00784_ The unstable cave ceiling collapses. 00880_ Searching scrap... 00880_ Found Seismic Detector. 00880_ Found 24 Matter. 00880_ Found Med. Storage Unit. 00880_ Found 31 Matter. 00881_ Acquired 31 matter. 00882_ Acquired 19 matter. 01005_ T-07 Excavator is excavating. 01032_ Acquired Aluminum Leg. 01066_ Acquired Lgt. Nuclear Core. Map ----- +----------------------------------------------------+ | | | | | | | | | | | | | | | | | | | | | | | | | | | | | ?????????????????????????????????????????????????? | | ?????????????#???????????????????????????????????? | | ???####???????????????####??##??#????????????????? | | ??## ##??????????????# #????????????????????? | | ??# #??????????????# """ #????????????????????? | | ??# ##?#???????????# """ #?#??????????????????? | | ??# #??####???????# """ #????????????????????? | | ?## ##? ???????# """ #?????? ?????????????? | | ??# #? ?????#?# ??????????????????????? | | ??## #?# #????#???# #???????????????????????? | | ???# ##?# #??????#?#s####????????????????????? | | ???# #??# #????????# @ #????????????????????? | | #??# #### #????????#### #????????????????????? | | ???# #??????????## #????? ??????????????? | | ???# #### #??????????## ###???????#??????????? | | ???# ##??# ########????# ##?????????????????? | | ???# ##???# #??#?# ##????? ??????????? | | ???# ###????######## #???## ## ## ????? | | ???# #????????#??#?# ###?# % ????? | | #### #?????????????# ##??#% % =###### ????? | | #??#??????????# #??## ####?????????? ?? ??? | | ######????#??#?????# #???# ##????#???????????????? | | ?????????#?????#???# ##### #####??????? ????????? | | ???#???#??????##???# =%!% %%% #??????????? ??#??? | | ???????????????#?#?########### ###???????? ??????? | | #?????#???#???#???#????#???????% #??????????????#? | | ?????#?????????????????????#?#?#%#??????????????#? | | ####?##########???????#??##???##%#?##??????#?????? | | ##??## ## ###??###????#????# ##????????#?????? | | #??# #???#??????######%#???????????#???? | | #???? ###???#???##!=###%######??????????? | | #?# !! ######??#==!=## ## ######?##### | | ?? ###??# %[ # #####*%|= % * ##?# | | ? ?? ##????## % = !##%=*!%!!!% #?# | | ??????####### = =!%=%###### #?# = | | #????### # % ! ## **!##????## #### """ | +----------------------------------------------------+ Best States ------------- Heat Dissipation 25 Energy Generation 14 Energy Capacity 160 Matter Stores 300 Matter Capacity 300 Sight Range 16 Terrain Scan Range 16 Terrain Scan Density 10 Evasion (%) 55 Item Schematics ----------------- None Robot Schematics ------------------ None Fabricated ------------ Nothing Alien Tech Used ----------------- None Achievements -------------- None Challenges ------------ None Game ------ Seed ChainGuidanceLance Manual? 0 Play Time 00:08:09 Cumulative 22.3 hours Start 2023.10.05 @ 21:00:46 End 2023.10.05 @ 21:09:30 Sessions 1 Manual Loads 0 Difficulty Rogue Special Mode None Game No. 47 Rogue 44 Adventurer 3 Explorer 0 Win Type - Total 0 Types 0/0/0/0/0/0/0/0/0 Lore% 20 Gallery% 29 Achievement% 22 Wizard Run 0 Options --------- ASCII 0 Keyboard 0 Movement Mouse Keybinds 0 Fullscreen 2 Font 18/SmallcapsGlow Map View 76x50 Tactical HUD 1 Map Filters NONE Filters NONE Steam 1 RUN: 506d2d59-e1be-4e82-b66b-7581e42629a1